Cogmind - Beta 13 @@@ ROGUE MODE // 2024.04.09 @ 23:42:37 Player: Xidas Result: Destroyed by S-10 Pest with Light Assault Rifle Performance ------------- Evolutions (2) 1000 Regions Visited (6) 1200 Robots Destroyed (49) 245 Value Destroyed (1329) 1329 Prototype IDs (4) 80 Alien Tech Used (0) 0 Bonus (200) 200 TOTAL SCORE: 4054 Bonus ------- Entered Garrisons 200 Cogmind --------- Core Integrity 0/550 Matter 210/300 Energy 136/140 System Corruption 0% Temperature Cool (0) Movement Core (50) Location -8/Materials Parts ------- > --- POWER (1) -------- Light Deuterium Engine > --- PROPULSION (4) --- (None) > --- UTILITY (4) ------ Advanced Weight Redist. System Advanced Visual Processing Unit Signal Interpreter > --- WEAPON (2) ------- Advanced Assault Cannon > --- INVENTORY (5) ---- Heavy Ion Engine Medium Matter Pod (100) Medium Matter Pod (100) Peak State ------------ > --- POWER ------------ Heavy Ion Engine > --- PROPULSION ------- Compact Wheel Compact Wheel Compact Wheel Compact Wheel > --- UTILITY ---------- Improved Heat Sink Medium Storage Unit Trap Scanner Signal Interpreter > --- WEAPON ----------- Field Laser Field Laser > --- INVENTORY -------- Heavy Ion Engine Heat Sink Disposable Heat Sink Medium Matter Pod Medium Matter Pod Advanced Visual Processing Unit ECM Suite Light Armor Plating Hacking Suite Authchip [R/Combat] [Rating: 23] Favorites ----------- Power Heavy Ion Engine Engine Heavy Ion Engine Propulsion Aluminum Leg Leg Aluminum Leg Wheel Compact Wheel Flight Unit Flight Unit Utility Medium Storage Unit Device Improved Heat Sink Storage Medium Storage Unit Processor Signal Interpreter Protection Light Armor Plating Weapon Beam Cannon Energy Gun Beam Rifle Energy Cannon Beam Cannon Ballistic Gun Light Assault Rifle Ballistic Cannon Advanced Assault Cannon Build | -11 -10 -10 -9 -8 -8 -8 ------- Run | Yrd Mat Min Mat Mat Gar Mat Slots Evolved 4 | . . . 2 2 . . Power . | . . . . . . . Propulsion 2 | . . . 2 . . . Utility 2 | . . . . 2 . . Weapon . | . . . . . . . Parts Attached 57 | 6 4 7 21 11 2 6 Power 11 | 1 . 2 5 1 . 2 Engine 11 | 1 . 2 5 1 . 2 Core . | . . . . . . . Reactor . | . . . . . . . Propulsion 22 | 2 . 2 12 5 1 . Treads . | . . . . . . . Leg 17 | 2 . 2 12 1 . . Wheel 4 | . . . . 4 . . Hover . | . . . . . . . Flight 1 | . . . . . 1 . Utility 11 | 1 2 1 1 2 1 3 Device 5 | . . 1 . 2 . 2 Storage 3 | 1 2 . . . . . Processor 2 | . . . 1 . . 1 Hackware . | . . . . . . . Protection 1 | . . . . . 1 . Artifact . | . . . . . . . Weapon 13 | 2 2 2 3 3 . 1 Energy Gun 8 | 1 . 2 2 3 . . Energy Cannon 1 | . 1 . . . . . Ballistic Gun 3 | 1 1 . 1 . . . Ballistic Cannon 1 | . . . . . . 1 Launcher . | . . . . . . . Special Weapon . | . . . . . . . Impact Weapon . | . . . . . . . Slashing Weapon . | . . . . . . . Piercing Weapon . | . . . . . . . Special Melee Weapon . | . . . . . . . Unidentified Prototypes . | . . . . . . . Parts Lost 22 | . . 2 6 4 8 2 Power . | . . . . . . . Propulsion 13 | . . 1 4 3 4 1 Utility 3 | . . . . . 2 1 Weapon 6 | . . 1 2 1 2 . Highest Loss Streak 8 | . . 1 2 4 8 2 To Critical Strikes . | . . . . . . . Average Slot Usage (%) 90 | . 93 96 94 92 63 45 Engine 11 | . 14 14 11 9 5 4 Leg 30 | . 28 27 41 23 . . Wheel 2 | . . . . 7 19 . Device 10 | . . 11 10 17 8 12 Storage 11 | . 22 14 11 9 5 . Processor 2 | . . . . 9 9 18 Energy Gun 10 | . . 10 10 17 11 . Energy Cannon 6 | . 7 14 6 . . . Ballistic Gun 3 | . 19 2 2 . . . Naked Turns . | . . . . . . . Heaviest Build 28 | 13 19 22 25 27 28 13 Greatest Support 64 | 20 20 20 40 64 64 13 Greatest Overweight (x) 1 | 1 . 1 . 1 1 . Average Overweight (x) . | . . . . . . . Largest Inventory Capacity 10 | 8 10 10 10 10 10 5 Average Capacity 9 | 6 8 10 10 10 8 5 Most Carried 10 | 1 5 10 10 10 10 4 Average Carried 7 | . 2 8 8 8 8 2 Final Capacity 10 | 8 10 10 10 10 5 5 Final Carried 10 | 1 5 10 10 10 5 3 Class Distribution -------------------- 77% | Scavenger-Mutant 22% | Mutant Dominant Class ---------------- Mutant | -10/Materials Scavenger-Mutant | -10/Mines Scavenger-Mutant | -9/Materials Scavenger-Mutant | -8/Materials Scavenger-Mutant | -8/Garrison Mutant | -8/Materials Resources | -11 -10 -10 -9 -8 -8 -8 ----------- Run | Yrd Mat Min Mat Mat Gar Mat Matter Collected 1030 | 201 54 432 221 82 40 . Remotely . | . . . . . . . Salvage Created 1997 | . 54 499 811 616 17 . Parts 97 | . 3 25 43 25 1 . Haulers Intercepted 2 | . 1 . 1 . . . Recyclers Shooed 2 | . . . . 2 . . Parts Field Recycled . | . . . . . . . Retrieved Matter . | . . . . . . . Parts Self-Destructed . | . . . . . . . Prevented . | . . . . . . . Kills | -11 -10 -10 -9 -8 -8 -8 ------- Run | Yrd Mat Min Mat Mat Gar Mat Combat Hostiles Destroyed 39 | . . 11 18 9 1 . Guns 22 | . . 4 8 9 1 . Cannons 15 | . . 7 8 . . . Classes Destroyed 9 | . 1 3 4 1 . . Worker 2 | . . . 2 . . . Hauler 2 | . 1 . 1 . . . Recycler 4 | . . 1 . 3 . . Operator 1 | . . . 1 . . . Watcher 1 | . . . 1 . . . Swarmer 11 | . . 3 4 3 1 . Grunt 21 | . . 8 9 4 . . Brawler 1 | . . . . 1 . . Sentry 6 | . . . 5 1 . . Best Kill Streak 8 | . 1 3 6 8 1 . Combat Bots Only 8 | . . 3 6 8 1 . Max Kills in Single Turn 2 | . 1 1 2 2 1 . Gunslinging 1 | . . . . 1 . . Exploded . | . . . . . . . Melee . | . . . . . . . Uniques/NPCs Destroyed . | . . . . . . . Combat | -11 -10 -10 -9 -8 -8 -8 -------- Run | Yrd Mat Min Mat Mat Gar Mat Hostile Shots Fired 408 | . . 52 111 78 153 14 Missed 129 | . . 8 43 26 49 3 Damage Taken 3070 | . . 542 851 626 907 144 Core 825 | . . 182 93 97 407 46 Absorbed by Shields 34 | . . . . . 34 . Core Remaining (%) 67 | 100 . 27 76 . . . Volleys Fired 177 | . 6 39 82 37 8 5 Largest 2 | . 2 2 2 2 2 1 Hottest 126 | . 80 125 125 126 126 48 Shots Fired 289 | . 12 68 133 57 14 5 Gun 200 | . 6 36 87 57 14 . Cannon 89 | . 6 32 46 . . 5 Launcher . | . . . . . . . Special . | . . . . . . . Kinetic 53 | . 6 21 21 . . 5 Thermal 236 | . 6 47 112 57 14 . Explosive . | . . . . . . . Electromagnetic . | . . . . . . . Robot Hit Streak 9 | . 1 8 9 6 2 3 Robot Miss Streak 8 | . 8 3 4 4 3 3 Penetration Max . | . . . . . . . Secondary Targets 3 | . . . . 3 . . Max Gunslinging Chain 1 | . . . . 1 . . Shots Hit Robots 168 | . 2 41 86 31 5 3 Core Hits 69 | . 1 19 28 19 1 1 Critical Kills 1 | . . . 1 . . . Critical Parts Destroyed . | . . . . . . . Critical Strikes 14 | . . 4 7 3 . . Burn 13 | . . 4 6 3 . . Meltdown 1 | . . . 1 . . . Melee Attacks . | . . . . . . . Impact . | . . . . . . . Slashing . | . . . . . . . Piercing . | . . . . . . . Sneak Attacks . | . . . . . . . Combat Hostiles . | . . . . . . . Follow-up Attacks . | . . . . . . . Damage Inflicted 2795 | . 27 595 1453 531 83 106 Guns 1802 | . 10 265 913 531 83 . Cannons 993 | . 17 330 540 . . 106 Explosions . | . . . . . . . Melee . | . . . . . . . Ramming . | . . . . . . . Kinetic 414 | . 10 108 190 . . 106 Thermal 2381 | . 17 487 1263 531 83 . Explosive . | . . . . . . . Electromagnetic . | . . . . . . . Impact . | . . . . . . . Slashing . | . . . . . . . Piercing . | . . . . . . . Highest Corruption . | . . . . . . . Average Corruption . | . . . . . . . Corruption Purged . | . . . . . . . Corruption Blocked . | . . . . . . . Overload Shots . | . . . . . . . Overflow Damage 11 | . . 11 . . . . Projectiles 11 | . . 11 . . . . Explosions . | . . . . . . . Melee . | . . . . . . . Knockbacks 1 | . . . . . . 1 Impact . | . . . . . . . Kinetic 1 | . . . . . . 1 Secondary . | . . . . . . . Self-Inflicted Damage . | . . . . . . . Shots . | . . . . . . . Rammed . | . . . . . . . Targets Rammed . | . . . . . . . Kicked . | . . . . . . . Crushed . | . . . . . . . Highest Temperature 348 | . 82 348 129 84 254 33 Average Temperature 65 | . 38 113 32 34 102 21 Received Heat Transfer 1011 | . . 294 315 279 78 45 Effects 3 | . . 3 . . . . Interference 3 | . . 3 . . . . Siege Activations . | . . . . . . . Robots Corrupted . | . . . . . . . Combat Hostiles . | . . . . . . . Parts Fried . | . . . . . . . Impact Corruptions . | . . . . . . . Robots Melted 2 | . . . 2 . . . Combat Hostiles 2 | . . . 2 . . . Parts Melted 20 | . . 3 14 3 . . Heat Transferred 6512 | . 37 1369 3404 1517 185 . Parts Sabotaged . | . . . . . . . Parts Stolen . | . . . . . . . Parts Stripped . | . . . . . . . Power Chain Reactions . | . . . . . . . Alert | -11 -10 -10 -9 -8 -8 -8 ------- Run | Yrd Mat Min Mat Mat Gar Mat Peak Influence 355 | . 37 344 355 291 309 202 Initial 189 | . . 14 133 76 189 157 Average 175 | . 16 179 208 219 187 186 Maximum Alert Level 1 | . . 1 1 1 1 1 Low Security (%) 65 | 100 100 70 58 31 88 50 Level 1 34 | . . 29 41 68 11 49 Level 2 . | . . . . . . . Level 3 . | . . . . . . . Level 4 . | . . . . . . . Level 5 . | . . . . . . . High Security . | . . . . . . . Max Security . | . . . . . . . Squads Dispatched 3 | . . . 2 . . 1 Investigation 1 | . . . 1 . . . Extermination . | . . . . . . . Reinforcement 1 | . . . 1 . . . Assault . | . . . . . . . Garrison 1 | . . . . . . 1 Intercept . | . . . . . . . Searches Triggered . | . . . . . . . Construction Impeded . | . . . . . . . Haulers Reinforced . | . . . . . . . Active Scanning Responses . | . . . . . . . Cargo Convoy Interrupts . | . . . . . . . Stealth | -11 -10 -10 -9 -8 -8 -8 --------- Run | Yrd Mat Min Mat Mat Gar Mat Distress Signals 6 | . . . 4 1 . 1 Communications Jammed . | . . . . . . . Distress Signals . | . . . . . . . Times Spotted 83 | . 2 13 28 13 18 9 Peak Tracking Total 16 | . 1 3 7 6 16 9 Tactical Retreats 5 | . . 1 1 . 3 . Traps | -11 -10 -10 -9 -8 -8 -8 ------- Run | Yrd Mat Min Mat Mat Gar Mat Traps Triggered 2 | . . . . . 2 . Indirectly . | . . . . . . . Trap Hack Attempts . | . . . . . . . Triggered . | . . . . . . . Disarmed . | . . . . . . . Reprogrammed . | . . . . . . . Reused . | . . . . . . . Traps Extracted . | . . . . . . . Installed . | . . . . . . . Triggered . | . . . . . . . Machines | -11 -10 -10 -9 -8 -8 -8 ---------- Run | Yrd Mat Min Mat Mat Gar Mat Machines Disabled 2 | . . 1 1 . . . Max in Single Turn 1 | . . 1 1 . . . Machines Repaired . | . . . . . . . Machines Dismantled . | . . . . . . . Machines Sabotaged . | . . . . . . . Overloaded Fab Kills . | . . . . . . . Hacking | -11 -10 -10 -9 -8 -8 -8 --------- Run | Yrd Mat Min Mat Mat Gar Mat Machines Accessed 10 | . 3 1 4 1 1 . Terminals 7 | . 2 1 3 . 1 . Fabricators . | . . . . . . . Repair Stations . | . . . . . . . Recycling Units 1 | . 1 . . . . . Scanalyzers 1 | . . . 1 . . . Garrison Access 1 | . . . . 1 . . Total Hacks 24 | . 7 5 9 2 1 . Successful 15 | . 1 4 9 1 . . Failed 9 | . 6 1 . 1 1 . Catastrophic 3 | . 2 . . . 1 . Database Lockouts . | . . . . . . . Manual 6 | . . 5 . . 1 . Terminals 18 | . 5 5 7 . 1 . Fabricators . | . . . . . . . Repair Stations . | . . . . . . . Recycling Units 2 | . 2 . . . . . Scanalyzers 2 | . . . 2 . . . Garrison Access 2 | . . . . 2 . . Terminal Hacks 12 | . 1 4 7 . . . Record 2 | . . . 2 . . . Prototype ID Bank 2 | . . 1 1 . . . Level Access Points 1 | . . 1 . . . . Branch Access Points 2 | . 1 1 . . . . Emergency Access Points 2 | . . . 2 . . . Alert Level 1 | . . 1 . . . . Unreport Threat 1 | . . . 1 . . . Zone Layout 1 | . . . 1 . . . Fabricator Hacks . | . . . . . . . Repair Station Hacks . | . . . . . . . Recycling Unit Hacks . | . . . . . . . Scanalyzer 2 | . . . 2 . . . Insert Component 1 | . . . 1 . . . Analyze 1 | . . . 1 . . . Garrison Access Hacks 1 | . . . . 1 . . Unlock Access 1 | . . . . 1 . . Unauthorized Hacks . | . . . . . . . Terminals . | . . . . . . . Fabricators . | . . . . . . . Repair Stations . | . . . . . . . Recycling Units . | . . . . . . . Scanalyzers . | . . . . . . . Garrison Access . | . . . . . . . Data Cores Recovered . | . . . . . . . Used . | . . . . . . . Hacking Detections 10 | . 3 1 4 1 1 . Full Trace Events 2 | . 1 . 1 . . . Feedback Events . | . . . . . . . Feedback Blocked . | . . . . . . . Robot Schematics Acquired . | . . . . . . . Robots Built . | . . . . . . . Authchips . | . . . . . . . Time . | . . . . . . . Total Robot Build Rating . | . . . . . . . Part Schematics Acquired 1 | . . . 1 . . . Parts Built . | . . . . . . . Authchips . | . . . . . . . Time . | . . . . . . . Total Part Build Rating . | . . . . . . . Parts Repaired . | . . . . . . . Time . | . . . . . . . Parts Recycled . | . . . . . . . Recycled Matter . | . . . . . . . Retrieved Matter . | . . . . . . . Retrieved Components . | . . . . . . . Parts Scanalyzed 1 | . . . 1 . . . Part Schematics Acquired 1 | . . . 1 . . . Parts Damaged . | . . . . . . . Bothacking | -11 -10 -10 -9 -8 -8 -8 ------------ Run | Yrd Mat Min Mat Mat Gar Mat Used RIF Installer . | . . . . . . . Robots Hacked . | . . . . . . . Non-combat . | . . . . . . . Combat . | . . . . . . . Robot Hacks Applied . | . . . . . . . Relay Couplers Released . | . . . . . . . Fabnet Peak Effective % . | . . . . . . . Robots Rewired . | . . . . . . . Allies Hacked . | . . . . . . . Hacks Repelled . | . . . . . . . Allies | -11 -10 -10 -9 -8 -8 -8 -------- Run | Yrd Mat Min Mat Mat Gar Mat Total Allies . | . . . . . . . Largest Group . | . . . . . . . Highest-Rated Group . | . . . . . . . Highest-Rated Ally . | . . . . . . . Total Orders . | . . . . . . . Ally Attacks . | . . . . . . . Total Damage . | . . . . . . . Kills . | . . . . . . . Allies Corrupted . | . . . . . . . Allies Melted . | . . . . . . . Intel | -11 -10 -10 -9 -8 -8 -8 ------- Run | Yrd Mat Min Mat Mat Gar Mat Robot Analysis Total . | . . . . . . . Derelict Logs Recovered 1 | . . 1 . . . . Drone Launches . | . . . . . . . Drone Recoveries . | . . . . . . . Exploration | -11 -10 -10 -9 -8 -8 -8 ------------- Run | Yrd Mat Min Mat Mat Gar Mat Turns Passed 1977 | 54 217 391 882 229 143 61 Spaces Moved 1229 | 41 158 162 524 92 161 91 Core 39 | 12 . . . . 27 . Treads . | . . . . . . . Legs 927 | 29 158 162 524 54 . . Wheels 99 | . . . . 38 61 . Hover . | . . . . . . . Flight 164 | . . . . . 73 91 Fastest Speed 40 | 50 120 120 120 100 40 40 Average Speed 112 | 108 120 164 120 122 64 40 Slowest Speed 190 | 120 120 190 120 190 115 40 Overloaded Moves . | . . . . . . . Propulsion Burnouts . | . . . . . . . Robots Hopped . | . . . . . . . Cave-ins Triggered . | . . . . . . . Exploration Rate (%) 26 | 3 22 36 43 13 50 15 Regions Visited 6 Branch Regions 1 Pre-discovered Areas 1 | . . 1 . . . . Known Exits Taken 4 | . 1 1 1 1 . . Unknown Exits Taken 1 | 1 . . . . . . Scrap Searched 1 | . . 1 . . . . Spaces Dug . | . . . . . . . Terrain Destroyed 1 | . . . . . . 1 Melee . | . . . . . . . Projectile 1 | . . . . . . 1 AOE . | . . . . . . . Terrain Rammed . | . . . . . . . Walls Destroyed . | . . . . . . . Machines Disabled . | . . . . . . . Actions | -11 -10 -10 -9 -8 -8 -8 --------- Run | Yrd Mat Min Mat Mat Gar Mat Total 1531 | 47 174 221 642 150 186 111 Wait 13 | . . 5 . . . 8 Move 1223 | 40 157 161 523 91 160 91 Hop . | . . . . . . . Pick Up 24 | 1 3 7 6 5 2 . Fast Attach 25 | 6 3 2 4 6 1 3 Attach 12 | . . 1 5 3 . 3 Detach 2 | . 1 . . . . 1 Swap 20 | . 1 4 12 2 1 . Drop 25 | . 3 2 10 6 4 . Fire 177 | . 6 39 82 37 8 5 Melee . | . . . . . . . Ram . | . . . . . . . Kick . | . . . . . . . Crush . | . . . . . . . Escape Stasis 10 | . . . . . 10 . Rewire . | . . . . . . . Trap . | . . . . . . . Miscellaneous . | . . . . . . . Route ------- -11/Scrapyard -10/Materials (discovered 2 exits: *Min x2) -10/Mines (discovered 2 exits: *Mat x2) -9/Materials (discovered 2 exits: *Mat / Sto) -8/Materials -8/Garrison -8/Materials History --------- Turn | Location | Event 24 | -11/Scrapyard | Discovered new exit (range 15) 55 | -11/Scrapyard | Entered Materials 73 | -10/Materials | Identified exit to Mines 272 | -10/Materials | Entered Mines 305 | -10/Mines | Identified exit to Materials 312 | -10/Mines | Build established: Mutant 333 | -10/Mines | Core integrity fell below 50% 652 | -10/Mines | Learned location of Storage (-9) 663 | -10/Mines | Build established: Scavenger-Mutant 663 | -10/Mines | Entered Materials 663 | -9/Materials | Evolved 2 slots: Propulsion x2 664 | -9/Materials | Identified exit to Storage 1520 | -9/Materials | Discovered new exit (range 7) 1529 | -9/Materials | Identified exit to Materials 1545 | -9/Materials | Entered another Materials area 1545 | -8/Materials | Evolved 2 slots: Utility x2 1699 | -8/Materials | Destroyed 8 combat bots 1699 | -8/Materials | Lost 4 parts (3n1w) 1771 | -8/Materials | Identified exit to Garrison 1774 | -8/Materials | Entered Garrison 1852 | -8/Garrison | Triggered checkpoint 1862 | -8/Garrison | Triggered checkpoint 1879 | -8/Garrison | Core integrity fell below 50% 1898 | -8/Garrison | Core integrity fell below 20% 1902 | -8/Garrison | Triggered checkpoint 1902 | -8/Garrison | Lost 8 parts (4n2u2w) 1914 | -8/Garrison | Discovered new exit (range 10) 1917 | -8/Garrison | Identified exit to Materials 1917 | -8/Garrison | Entered Materials 1970 | -8/Materials | Garrison activated, responded to threat 1978 | -8/Materials | Destroyed by S-10 Pest with Light Assault Rifle Last Messages --------------- LOCATION=MATERIALS GOAL=ESCAPE You have entered the same map type at the same depth as a previous visit, though this is a different location at that depth rather than "revisiting" the exact same area. 01935_ K-01 Serf collects debris. 01942_ Acquired Adv. Weight Redist. System. 01947_ Acquired Lgt. Deuterium Engine. 01963_ K-01 Serf collects debris. 01963_ Acquired Adv. Assault Cannon. 01964_ K-01 Serf collects debris. 01966_ A-02 Transporter sends out distress signal. 01969_ Trap Scanner destroyed. 01970_ G-50 Soldier calls for garrison reinforcements. 01970_ ALERT: Activating Garrison Access M001. 01976_ S-10 Pest knocked back. 01977_ Flight Unit destroyed. Map ----- +----------------------------------------------------+ | ??????????????????????????????????????????######## | | ?????????????????????????????????????????????????? | | ?????????????????????????????????????????????????? | | ?????????????????????????????????????????????????? | | ?????????????????????????????????????????????????? | | ?????????????????????????????????????????????????? | | ????????????????????????????????#######??????????? | | ????????????????????????????????#! ############ | | ????????????????????????????????# | | ????????????????????????????????# | | ????????????????????????????????# | | ????????????????????????????????# ###+######## | | ??????????????????????????######## ## | | ??????????????????????????# # ## | | ??????????????????????????# # ## * | | ??????????????????????????# " " + ## | | ??????????????????????????# "G" # ## = | | ??????????????????????????# " # ## | | ????????????????????#####?# # ############# | | ???????????????????##!!!!######### ]#???????? | | ???????????????????#! !#??##### ]]#???????? | | ???????????????????# #??#T"## !!#???????? | | ????????#+########## #### "## !!#???????? | | ?????? ss !!#???????? | | ?????? s% !!#???????? | | ?????? @ s #####???????? | | ???????????????#+###########;##### #???????????? | | ?????????????????????????????????# #???????????? | | ?????????????????????????????????# #???????????? | | ?????????????????????????????????+ #???????????? | | ?????????????????????????????????# #???????????? | | ?????????????????????????????????# #???????????? | | ?????????????????????????????????# #???????????? | | ?????????????????????????????????# #???????????? | | ?????????????????????????????????# #???????????? | | ?????????????????????????????????# #???????????? | | ?????????????????????????????????#% #???????????? | | ?????????????????????????????????# % ???????????? | | ????????????????????????????????? ???????????? | | ?????????????????????????????????# ???????????? | | ??????????????????????????????????#+##???????????? | | ??????????????????????????????????? ?????????????? | | ?????????????????????????????????????????????????? | | ?????????????????????????????????????????????????? | | ?????????????????????????????????????????????????? | | ?????????????????????????????????????????????????? | | ?????????????????????????????????????????????????? | | ?????????????????????????????????????????????????? | | ?????????????????????????????????????????????????? | | ?????????????????????????????????????????????????? | +----------------------------------------------------+ Best States ------------- Heat Dissipation 45 Energy Generation 14 Energy Capacity 280 Matter Stores 300 Matter Capacity 400 Sight Range 20 Terrain Scan Density 10 Additional Mass Support 9 Armor Coverage 150 Evasion (%) 62 Authchip Count 2 Item Schematics ----------------- Imp. Ion Engine | -9/Materials | Scanalyzed Robot Schematics ------------------ None Fabricated ------------ Nothing Alien Tech Used ----------------- None Achievements -------------- root@ Challenges ------------ None Game ------ Seed SubatomicThermicRefractor Manual? 0 Play Time 00:38:28 Cumulative 9.0 hours Start 2024.04.09 @ 23:06:28 End 2024.04.09 @ 23:42:37 Sessions 1 Manual Loads 0 Difficulty Rogue Special Mode None Game No. 7 Rogue 7 Adventurer 0 Explorer 0 Win Type - Total 0 Types 0/0/0/0/0/0/0/0/0 Lore% 14 Gallery% 13 Achievement% 10 Wizard Run 0 Options --------- Layout 1 ASCII 0 Keyboard 0 Movement Mouse Keybinds 0 Fullscreen 1 Font 24/Smallcaps Map View 50x35 Zoom Use 0% Tactical HUD 1 Map Filters NONE Filters NONE Steam 1 RUN: 7cf7c118-7485-4e5d-bd35-9be45e059084